[Event "Julius Baer Generation Cup Prelims 2022"]
[Site "Online"]
[Date "2022.09.14"]
[Round "15.8"]
[White "Praggnanandhaa R"]
[Black "Saric, Ivan"]
[Result "1-0"]
[ECO "E99"]
[WhiteElo "2676"]
[BlackElo "2668"]
[Annotator "TA"]
[PlyCount "125"]
[EventDate "2022.09.12"]
[EventType "tourn"]
[EventCountry "NET"]
[SourceTitle "playchess.com"]
[Source "ChessBase"]
[SourceQuality "1"]
[TimeControl "900+10"]

{[%evp 23,125,54,75,75,78,67,91,68,69,65,113,105,123,116,129,141,136,123,146,87,75,97,293,285,313,325,299,190,181,197,277,277,270,277,333,291,410,405,489,473,446,480,418,286,284,285,283,278,410,411,383,313,293,218,343,170,167,167,172,168,156,162,171,153,193,170,720,715,835,826,843,841,843,579,832,831,1258,818,820,744,2429,1937,2373,2113,1512,1664,29971,29972,29972,29973,29973,29974,29974,29974,29974,29975,29975,29976,29976,29976,29976,29976,12556,2676]} 1. d4 {[%emt 0:00:00]} Nf6 {[%emt 0:00:00]} 2. c4 {[%emt 0:00:02]} g6 {[%emt 0:00:01]} 3. Nc3 {[%emt 0:00:00]} Bg7 {[%emt 0:00:01]} 4. e4 {[%emt 0:00:01]} d6 {[%emt 0:00:00]} 5. Be2 {[%emt 0:00:01]} O-O {[%emt 0:00:01]} 6. Nf3 {[%emt 0:00:00]} e5 {[%emt 0:00:05]} 7. O-O {[%emt 0:00:02]} Nc6 {[%emt 0:01:10]} 8. d5 {[%emt 0:00:03]} Ne7 {[%emt 0:00:00]} 9. Ne1 {[%emt 0:00:01]} Nd7 {[%emt 0:00:04]} 10. Nd3 {[%emt 0:00:02]} f5 {[%emt 0:00:01]} 11. f3 {[%emt 0:00:02]} f4 {[%emt 0:00:51]} 12. b4 $1 {[%emt 0:00:03][%mdl 4] outshines the older 12.Bd2.} g5 {[%emt 0:00:13]} 13. c5 {[%emt 0:00:04] E99: King's Indian: Classical Main Line: 9 Ne1 Nd7 10 f3 f5.} Nf6 {[%emt 0:00:06]} 14. a4 {[%emt 0:00:08][%cal Ba2a4,Ba4a5][%mdl 32]} h5 {[%emt 0:00:03]} 15. a5 {[%emt 0:00:21] White is better.} g4 {[%emt 0:00:11]} 16. fxg4 {[%emt 0:00:43]} hxg4 {[%emt 0:00:25]} (16... Bxg4 $14 {feels stronger.} 17. b5 b6) 17. Nf2 $1 $16 {[%emt 0:00:04]} Qd7 {[%emt 0:02:10]} 18. a6 {[%emt 0:00:19]} bxa6 {[%emt 0:00:46]} 19. c6 {[%emt 0:00:47][%mdl 64] Deflection} Qe8 {[%emt 0:00:04]} 20. Nxg4 {[%emt 0:00:06] White is much more active.} Qg6 {[%emt 0:00:17][%cal Rf6g4]} 21. Nf2 {[%emt 0:02:45]} ({Better is} 21. Nxf6+ Bxf6 22. Bxa6) 21... Rb8 {[%emt 0:00:17] [#]} 22. Bxa6 $146 {[%emt 0:01:33]} ({Predecessor:} 22. b5 Bh6 23. bxa6 Rf7 24. Bf3 Rh7 25. Bd2 Bg5 26. Be1 Rb6 27. Na4 Rb8 28. Ba5 {0-1 (46) Sadhwani,R (2507)-Amin,B (2683) Moscow 2019}) 22... f3 $2 {[%emt 0:00:12] This move loses the game for Black.} (22... Rxb4 $16 {is a better defense.} 23. Bd3 a6) 23. Qxf3 $18 {[%emt 0:00:58]} Bxa6 {[%emt 0:01:58]} 24. Rxa6 {[%emt 0:00:05]} Rxb4 {[%emt 0:00:01][%cal Of6e4]} 25. Qg3 {[%emt 0:01:41]} Qxg3 {[%emt 0:00:34]} 26. hxg3 {[%emt 0:00:02]} Rc4 {[%emt 0:00:21]} (26... Nc8 $142 27. g4 Rb3) 27. Bd2 {[%emt 0:01:11]} (27. Rxa7 Rxc3 28. Rxc7 Ng6 $11) 27... Nc8 {[%emt 0:00:32]} 28. g4 {[%emt 0:00:09] Against Nh5} Rd4 {[%emt 0:00:28]} 29. Rd1 {[%emt 0:00:59]} Rc4 {[%emt 0:00:21]} (29... Rb4 $142 30. Ra5 Rc4) 30. Rb1 {[%emt 0:00:20]} Rd4 {[%emt 0:00:59]} 31. Be3 {[%emt 0:00:06]} Rc4 {[%emt 0:00:01]} 32. Rb3 {[%emt 0:00:05]} Kh7 {[%emt 0:00:25]} 33. Ra4 {[%emt 0:01:52]} Rxa4 {[%emt 0:00:03]} 34. Nxa4 {[%emt 0:00:00]} Nb6 {[%emt 0:00:19]} 35. Nc3 {[%emt 0:00:03]} (35. Nxb6 $6 axb6 36. Ra3 Rc8 $18) 35... Nc4 {[%emt 0:00:49]} (35... Rd8 $142 36. g5 Ne8) 36. Bxa7 {[%emt 0:00:23]} Bh6 {[%emt 0:00:41]} 37. Nb5 {[%emt 0:00:17]} Ra8 {[%emt 0:01:48]} 38. Rb4 {[%emt 0:00:57]} Na3 {[%emt 0:00:03] [#]} (38... Ne3 {might work better.} 39. Ra4 (39. g5 Bxg5 40. Ra4 Rc8 $16) 39... Ne8) 39. Nxa3 {[%emt 0:01:21]} (39. Nxc7 $142 $1 Rxa7 40. Ne8 $1 {[%mdl 512]} (40. Rb7 Rxb7 41. cxb7 Nd7 $16) 40... Nxe8 41. Rb7+ Kg6 42. Rxa7) 39... Rxa7 {[%emt 0:00:02]} 40. Rb3 {[%emt 0:00:04] Hoping for Nb5.} Kg6 {[%emt 0:00:35]} 41. Nb5 {[%emt 0:00:53]} Ra1+ {[%emt 0:00:03]} 42. Kh2 {[%emt 0:00:01]} Ra2 {[%emt 0:01:14]} 43. Kg3 {[%emt 0:00:59]} (43. Nxc7 Rxf2 44. Ne6 Rc2 $11) 43... Bd2 {[%emt 0:01:05] [#] Threatens to win with ...Be1.} 44. Kf3 $1 {[%emt 0:00:11]} ({Inferior is} 44. Nxc7 Be1 45. Ne6 Rxf2 $15) 44... Nh7 $2 {[%emt 0:02:15]} (44... Ne8 45. Nd3 Bg5) 45. Nh3 {[%emt 0:00:03]} ({And not} 45. Nxc7 Ng5+ 46. Ke2 Ba5+ 47. Kf1 Bxc7 $11) 45... Ba5 {[%emt 0:00:04]} 46. Ra3 {[%emt 0:00:04]} Rxa3+ {[%emt 0:00:01]} 47. Nxa3 {[%emt 0:00:01][%mdl 4096] Endgame KBN-KNN} Bb6 {[%emt 0:00:10]} 48. Nc4 {[%emt 0:00:45]} Bc5 {[%emt 0:00:03]} 49. Nd2 {[%emt 0:00:12]} Bb6 {[%emt 0:00:36]} 50. Nf1 {[%emt 0:01:10][%cal Og4g5] And now g5! would win.} Bc5 {[%emt 0:00:04]} 51. Ng3 {[%emt 0:00:37][%cal Og4g5] Black must now prevent g5!} Kf6 {[%emt 0:00:01] Against g5+} 52. Nf5 {[%emt 0:00:20]} Bb6 {[%emt 0:00:04]} 53. Kg3 {[%emt 0:00:05]} Kg6 {[%emt 0:01:07]} 54. g5 {[%emt 0:00:23]} Nxg5 {[%emt 0:00:04]} 55. Nxg5 {[%emt 0:00:01]} Kxg5 {[%emt 0:00:00] KB-KN} 56. Ng7 {[%emt 0:00:00]} Kg6 {[%emt 0:00:07]} 57. Ne6 {[%emt 0:00:13]} Kh5 {[%emt 0:00:02]} 58. Kh3 {[%emt 0:00:12]} Ba5 {[%emt 0:00:01]} 59. g4+ {[%emt 0:00:07]} Kg6 {[%emt 0:00:00]} 60. Kg2 {[%emt 0:00:02]} Bb6 {[%emt 0:00:08]} 61. Kf3 {[%emt 0:00:02]} Ba5 {[%emt 0:00:25]} 62. Ke2 {[%emt 0:00:01]} Bb6 {[%emt 0:00:07]} 63. Kd3 {[%emt 0:00:01] Weighted Error Value: White=0.31/Black=0.39} (63. Kd2 $142 Kf7 64. Kc3) 1-0